fUSD/lending_fUSD_20250307
["ID","MTS","AMOUNT","RATE_DAILY","PERIOD"]
[355604743,1741361727454,154.01,7.455e-05,2]
[355604744,1741361728267,154.01,7.502e-05,2]
[355604745,1741361728781,154.01,7.548e-05,2]
[355604746,1741361729274,154.01,7.594e-05,2]
[355604747,1741361729347,154.01,7.641e-05,2]
[355604748,1741361729429,154.01,7.687e-05,2]
[355604749,1741361729463,-300.0,8.099e-05,2]
[355604750,1741361729647,154.01,7.733e-05,2]
[355604751,1741361729878,154.01,7.779e-05,2]
[355604752,1741361757192,150.0,7.946e-05,2]
[355604753,1741361757318,150.0,8.043e-05,2]
[355604754,1741361757446,150.0,7.972e-05,2]
[355604755,1741361757488,150.0,8.058e-05,2]
[355604756,1741361757524,150.0,7.921e-05,2]
[355604757,1741361757565,150.0,7.917e-05,2]
[355604758,1741361757644,150.0,7.899e-05,2]
[355604759,1741361757676,150.0,8.012e-05,2]
[355604760,1741361757709,150.0,7.957e-05,2]
[355604761,1741361757749,150.0,7.909e-05,2]
[355604762,1741361757827,150.0,7.895e-05,2]
[355604763,1741361757874,150.0,8.046e-05,2]
[355604764,1741361757909,150.0,7.964e-05,2]
[355604765,1741361757946,150.0,8.076e-05,2]
[355604766,1741361757984,150.0,7.969e-05,2]
[355604767,1741361758017,150.0,7.904e-05,2]
[355604768,1741361779312,-150.0,8.087e-05,2]
[355604769,1741361779384,150.0,7.948e-05,2]
[355604770,1741361779471,150.0,8.079e-05,2]
[355604771,1741361779540,150.0,7.935e-05,2]
[355604772,1741361846392,463.9,7.217e-05,2]
[355604773,1741361877157,150.0,7.959e-05,2]
[355604774,1741361877249,150.0,7.938e-05,2]
[355604775,1741361877357,150.0,8.051e-05,2]
[355604776,1741361877507,150.0,8.076e-05,2]
[355604777,1741361877551,150.0,8.068e-05,2]
[355604778,1741361877657,150.0,8.048e-05,2]
[355604779,1741361877737,150.0,8.073e-05,2]
[355604780,1741361877779,150.0,7.946e-05,2]
[355604781,1741361877890,150.0,8.051e-05,2]
[355604782,1741361877923,150.0,7.999e-05,2]
[355604783,1741361878033,150.0,7.949e-05,2]
[355604784,1741361878079,150.0,7.977e-05,2]
[355604785,1741361878387,150.0,7.958e-05,2]
[355604786,1741361878533,150.0,8.079e-05,2]
[355604787,1741361878821,150.0,8.032e-05,2]
[355604788,1741361937500,-150.0,8.08e-05,2]
[355604789,1741361987287,250.0,8.006e-05,2]
[355604790,1741362116821,1000.0,7.95e-05,2]
[355604791,1741362221932,200.0,7.91e-05,2]
[355604792,1741362237299,150.0,8.058e-05,2]
[355604793,1741362237459,150.0,8.055e-05,2]
[355604794,1741362237535,150.0,7.962e-05,2]
[355604795,1741362237571,150.0,8.04e-05,2]
[355604796,1741362237611,150.0,8.057e-05,2]
[355604797,1741362237655,150.0,8.035e-05,2]
[355604798,1741362237787,150.0,8.009e-05,2]
[355604799,1741362237821,150.0,7.952e-05,2]
[355604800,1741362237868,150.0,8.035e-05,2]
[355604801,1741362237913,150.0,8.079e-05,2]
[355604802,1741362238013,150.0,7.926e-05,2]
[355604803,1741362238160,150.0,7.93e-05,2]
[355604804,1741362238197,150.0,7.969e-05,2]
[355604805,1741362238264,150.0,8.067e-05,2]
[355604806,1741362238508,150.0,8.07e-05,2]
[355604807,1741362238653,150.0,8.007e-05,2]
[355604808,1741362297580,150.0,7.973e-05,2]
[355604809,1741362297740,150.0,8.03e-05,2]
[355604810,1741362297845,150.0,7.981e-05,2]
[355604811,1741362297903,150.0,8.077e-05,2]
[355604812,1741362357186,150.0,7.944e-05,2]
[355604813,1741362357543,150.0,8.078e-05,2]
[355604814,1741362357719,150.0,8.031e-05,2]
[355604815,1741362357780,150.0,7.939e-05,2]
[355604816,1741362417139,150.0,8.025e-05,2]
[355604817,1741362417389,150.0,8.066e-05,2]
[355604818,1741362417426,150.0,8.037e-05,2]
[355604819,1741362417545,150.0,7.948e-05,2]
[355604820,1741362417615,150.0,7.997e-05,2]
[355604821,1741362417663,150.0,8.076e-05,2]
[355604822,1741362417697,150.0,7.959e-05,2]
[355604823,1741362417741,150.0,8.07e-05,2]
[355604824,1741362417774,150.0,7.934e-05,2]
[355604825,1741362417819,150.0,7.966e-05,2]
[355604826,1741362418044,150.0,7.944e-05,2]
[355604827,1741362418325,150.0,8.015e-05,2]
[355604828,1741362418381,150.0,7.94e-05,2]
[355604829,1741362418752,150.0,8.056e-05,2]
[355604830,1741362466032,500.0,7.5e-05,2]
[355604831,1741362468159,1000.0,7.6e-05,2]
[355604832,1741362470463,1600.0,7.7e-05,2]
[355604833,1741362472617,2100.0,7.8e-05,2]
[355604834,1741362474778,2600.0,7.9e-05,2]
[355604835,1741362476924,500.0,8e-05,2]
[355604836,1741362524343,-150.0,8.082e-05,2]
[355604837,1741362537278,150.0,7.973e-05,2]
[355604838,1741362537319,150.0,8.075e-05,2]
[355604839,1741362537361,150.0,8.033e-05,2]
[355604840,1741362537419,150.0,7.932e-05,2]
[355604841,1741362537471,150.0,8.037e-05,2]
[355604842,1741362537585,150.0,8.077e-05,2]
[355604843,1741362537802,150.0,8.078e-05,2]
[355604845,1741362594613,-150.0,8.083e-05,2]
[355604846,1741362594665,-150.0,8.083e-05,2]
[355604847,1741362594720,-150.0,8.086e-05,2]
[355604848,1741362594771,-150.0,8.09e-05,2]
[355604849,1741362594824,-150.0,8.095e-05,2]
[355604850,1741362594879,-150.0,8.096e-05,2]
[355604851,1741362594935,-150.0,8.097e-05,2]
[355604852,1741362594989,-150.0,8.098e-05,2]
[355604853,1741362595041,-150.0,8.099e-05,2]
[355604854,1741362595092,-1248.06976408,8.1e-05,2]
[355604855,1741362595168,-2598.06976408,8.1e-05,2]
[355604856,1741362595264,-2598.06976408,8.1e-05,2]
[355604857,1741362595330,-2598.06976408,8.1e-05,2]
[355604858,1741362595398,-2512.96292586,8.1e-05,2]
[355604859,1741362614946,-500.0,8.1e-05,2]
[355604869,1741362632305,-5222.0,8.1e-05,2]
[355604870,1741362632317,-13538.99947917,8.1e-05,2]
[355604871,1741362632329,-2014.25073865,8.1e-05,2]
[355604872,1741362632339,-150.0,8.102e-05,2]
[355604873,1741362632349,-150.0,8.104e-05,2]
[355604874,1741362632358,-150.0,8.116e-05,2]
[355604875,1741362632368,-150.0,8.118e-05,2]
[355604876,1741362632378,-463.9,8.119e-05,2]
[355604877,1741362632387,-150.0,8.121e-05,2]
[355604878,1741362632397,-150.0,8.124e-05,2]
[355604879,1741362632406,-150.0,8.131e-05,2]
[355604880,1741362632417,-150.0,8.134e-05,2]
[355604881,1741362632427,-150.0,8.135e-05,2]
[355604882,1741362632436,-150.0,8.137e-05,2]
[355604883,1741362632448,-150.0,8.14e-05,2]
[355604884,1741362632458,-150.0,8.14e-05,2]
[355604885,1741362632467,-150.0,8.14e-05,2]
[355604886,1741362632478,-153.2,8.14e-05,2]
[355604887,1741362632488,-150.0,8.14e-05,2]
[355604888,1741362632499,-440.59,8.14e-05,2]
[355604889,1741362632509,-344.81,8.14e-05,2]
[355604890,1741362632520,-151.44,8.14e-05,2]
[355604891,1741362632529,-412.5,8.14e-05,2]
[355604892,1741362632539,-344.81,8.14e-05,2]
[355604893,1741362632549,-150.0,8.14e-05,2]
[355604894,1741362632560,-440.59,8.14e-05,2]
[355604895,1741362632569,-150.0,8.14e-05,2]
[355604896,1741362632579,-167.36,8.14e-05,2]
[355604897,1741362632589,-150.0,8.14e-05,2]
[355604898,1741362632598,-150.0,8.14e-05,2]
[355604899,1741362632608,-228.0738095,8.14e-05,2]
[355604900,1741362632620,-652.9261905,8.14e-05,2]
[355604901,1741362632630,-300.0,8.14e-05,2]
[355604902,1741362632640,-882.53,8.14e-05,2]
[355604903,1741362632650,-150.0,8.142e-05,2]
[355604904,1741362632665,-150.0,8.145e-05,2]
[355604905,1741362632675,-233.2058516,8.145e-05,2]
[355604906,1741362632685,-150.0,8.146e-05,2]
[355604907,1741362632695,-693.28488955,8.146e-05,2]
[355604908,1741362632708,-441.44,8.15e-05,2]
[355604909,1741362632718,-440.59,8.15e-05,2]
[355604910,1741362632728,-150.0,8.15e-05,2]
[355604912,1741362632738,-150.0,8.15e-05,2]
[355604914,1741362632749,-778.22,8.15e-05,2]
[355604916,1741362632759,-150.0,8.152e-05,2]
[355604918,1741362632769,-180.70710628,8.156e-05,2]
[355604920,1741362632778,-150.0,8.158e-05,2]
[355604921,1741362632788,-990.22,8.16e-05,2]
[355604923,1741362632798,-990.22,8.16e-05,2]
[355604926,1741362632808,-990.22,8.16e-05,2]
[355604928,1741362632817,-456.90129607,8.16e-05,2]
[355604930,1741362632830,-80.28870393,8.16e-05,2]
[355604932,1741362632839,-150.0,8.161e-05,2]
[355604934,1741362632848,-150.0,8.162e-05,2]
[355604936,1741362632858,-5574.2693835,8.164e-05,2]
[355604943,1741362632918,-3670.06607986,8.164e-05,2]
[355604945,1741362632929,-7818.60825931,8.164e-05,2]
[355604948,1741362632941,-70014.05627733,8.164e-05,2]
[355604949,1741362632953,-205.497,8.164e-05,2]
[355604952,1741362632962,-205.497,8.164e-05,2]
[355604953,1741362632971,-205.497,8.164e-05,2]
[355604956,1741362632981,-205.497,8.164e-05,2]
[355604958,1741362632990,-205.497,8.164e-05,2]
[355604960,1741362633000,-205.497,8.164e-05,2]
[355604962,1741362633009,-205.497,8.164e-05,2]
[355604964,1741362633018,-205.497,8.164e-05,2]
[355604966,1741362633028,-205.497,8.164e-05,2]
[355604968,1741362633038,-205.497,8.164e-05,2]
[355604969,1741362633047,-150.0,8.168e-05,2]
[355604971,1741362633058,-150.0,8.169e-05,2]
[355604973,1741362633068,-160.26234949,8.173e-05,2]
[355604975,1741362633077,-500.0,8.173e-05,2]
[355604977,1741362633087,-160.6097999,8.173e-05,2]
[355604979,1741362633097,-164.23712502,8.173e-05,2]
[355604981,1741362633106,-150.0,8.173e-05,2]
[355604983,1741362633117,-150.0,8.174e-05,2]
[355604984,1741362633128,-150.0,8.176e-05,2]
[355604985,1741362633138,-150.0,8.181e-05,2]
[355604986,1741362633150,-500.0,8.183e-05,2]
[355604987,1741362633161,-160.26235312,8.183e-05,2]
[355604990,1741362633171,-500.0,8.183e-05,2]
[355604991,1741362633181,-1210.564,8.183e-05,2]
[355604993,1741362633191,-150.0,8.186e-05,2]
[355604995,1741362633206,-150.0,8.189e-05,2]
[355604997,1741362633216,-150.0,8.19e-05,2]
[355604999,1741362633226,-344.81,8.19e-05,2]
[355605001,1741362633237,-150.0,8.19e-05,2]
[355605003,1741362633247,-439.17,8.19e-05,2]
[355605006,1741362633257,-150.0,8.192e-05,2]
[355605008,1741362633267,-4705.6325683,8.194e-05,2]
[355605010,1741362633276,-6790.9779435,8.194e-05,2]
[355605011,1741362633286,-585.17545967,8.196e-05,2]
[355605013,1741362633296,-585.17545968,8.196e-05,2]
[355605015,1741362633306,-150.0,8.197e-05,2]
[355605017,1741362633317,-13338.28106139,8.199e-05,2]
[355605019,1741362633327,-500.0,8.199e-05,2]
[355605021,1741362633337,-298.7217127,8.199e-05,2]
[355605023,1741362633347,-333.6581187,8.199e-05,2]
[355605025,1741362633358,-1192.0,8.2e-05,2]
[355605027,1741362633369,-22020.40019747,8.2e-05,2]
[355605029,1741362633382,-18014.60016,8.2e-05,2]
[355605032,1741362633394,-2743.0071687,8.2e-05,2]
[355605034,1741362633407,-17758.0,8.2e-05,2]
[355605036,1741362633421,-888.51645908,8.2e-05,2]
[355605038,1741362633433,-1564.16322837,8.2e-05,2]
[355605040,1741362633446,-134375.96652207,8.2e-05,2]
[355605043,1741362633462,-34800.0,8.2e-05,2]
[355605052,1741362635882,500.0,8e-05,2]
[355605054,1741362638575,-5731.83384152,8.2e-05,2]
[355605055,1741362638589,-3199.65749618,8.2e-05,2]
[355605056,1741362638603,-519.750011,8.2e-05,2]
[355605057,1741362638620,-9993.85687916,8.2e-05,2]
[355605058,1741362638632,-88489.94279559,8.2e-05,2]
[355605059,1741362638645,-35536.09312702,8.2e-05,2]
[355605063,1741362638756,-20236.74,8.2e-05,2]
[355605065,1741362638767,-13565.0,8.2e-05,2]
[355605067,1741362638779,-3907.8278545,8.2e-05,2]
[355605068,1741362638789,-150.0,8.2e-05,2]
[355605069,1741362638799,-150.0,8.2e-05,2]
[355605070,1741362638809,-344.31,8.2e-05,2]
[355605071,1741362638818,-204.26435302,8.2e-05,2]
[355605072,1741362638828,-150.0,8.2e-05,2]
[355605073,1741362638838,-150.0,8.2e-05,2]
[355605074,1741362638847,-158.0,8.2e-05,3]
[355605075,1741362638857,-7116.52329248,8.2e-05,2]
[355605076,1741362638869,-142356.2463036,8.2e-05,2]
[355605077,1741362638880,-3883.155,8.2e-05,2]
[355605078,1741362638892,-4676.235,8.2e-05,2]
[355605080,1741362638903,-47453.56325,8.2e-05,2]
[355605082,1741362638915,-1000.55228628,8.2e-05,2]
[355605115,1741362639249,-1418.98397657,8.2e-05,2]
[355605117,1741362639261,-542.60013158,8.2e-05,2]
[355605119,1741362639272,-995.58367292,8.2e-05,2]
[355605121,1741362639283,-445.55,8.2e-05,2]
[355605221,1741362640346,-370.80323427,8.2e-05,2]
[355605243,1741362640596,-773.73477031,8.2e-05,2]
[355605245,1741362640608,-14831.71510276,8.2e-05,2]
[355605247,1741362640619,-1560.84649311,8.2e-05,2]
[355605249,1741362640630,-302.2027,8.2e-05,2]
[355605251,1741362640642,-18332.55375505,8.2e-05,2]
[355605253,1741362640655,-258075.75869091,8.2e-05,2]
[355605255,1741362640670,-4029.47920007,8.2e-05,2]
[355605257,1741362640681,-62425.02309055,8.2e-05,2]
[355605259,1741362640693,-1043709.1778087,8.2e-05,2]
[355605261,1741362640712,-529.37350002,8.2e-05,2]
[355605264,1741362640725,-428.7312,8.2e-05,2]
[355605295,1741362641065,-2097.86412202,8.2e-05,2]
[355605298,1741362641076,-2716.41,8.2e-05,2]
[355605300,1741362641088,-1657.65390319,8.2e-05,2]
[355605302,1741362641099,-281.58509351,8.2e-05,2]
[355605959,1741362647390,-492.0,8.199e-05,2]
[355605961,1741362647399,-51302.9999955,8.2e-05,2]
[355605963,1741362647411,-1290.999985,8.2e-05,2]
[355605966,1741362647422,-3918.15874295,8.2e-05,2]
[355605968,1741362647434,-2216.75052,8.2e-05,2]
[355605970,1741362647446,-3996.99999943,8.2e-05,2]
[355605975,1741362647491,-2547.53,8.2e-05,2]
[355605978,1741362647504,-4074.72045356,8.2e-05,2]
[355605980,1741362647515,-81338.97863293,8.2e-05,2]
[355605988,1741362647576,-453161.10768637,8.2e-05,2]
[355606104,1741362648621,-2052.1520392,8.2e-05,2]
[355606107,1741362648634,-532.38180266,8.2e-05,2]
[355606109,1741362648646,-10469.898,8.2e-05,2]
[355606111,1741362648660,-988.82805513,8.2e-05,2]
[355606113,1741362648673,-539.539,8.2e-05,2]
[355606115,1741362648685,-10424.4334155,8.2e-05,2]
[355606669,1741362740298,2000.0,7.913e-05,2]
[355606670,1741362743251,-300.0,8.099e-05,2]
[355606671,1741362892835,-17145.9505,8.1e-05,2]
[355606672,1741362892863,-9823.4332,8.1e-05,2]
[355606673,1741362892894,-550.0,8.147e-05,2]
[355606674,1741362892922,-150.0,8.193e-05,2]
[355606675,1741362892949,-201.9176481,8.194e-05,2]
[355606676,1741362892975,-5116.4270987,8.194e-05,2]
[355606677,1741362893002,-12520.9227864,8.194e-05,2]
[355606678,1741362893029,-1072.0,8.2e-05,2]
[355606679,1741362893055,-173.87120576,8.2e-05,2]
[355606680,1741362893081,-150.0,8.2e-05,2]
[355606681,1741362893111,-150.0,8.2e-05,2]
[355606682,1741362893148,-38945.47756104,8.2e-05,2]
[355606683,1741362897444,150.0,7.981e-05,2]
[355606684,1741362897482,150.0,7.988e-05,2]
[355606685,1741362897516,150.0,8.035e-05,2]
[355606686,1741362897560,150.0,8.061e-05,2]
[355606687,1741362897602,150.0,8.043e-05,2]
[355606688,1741362897652,150.0,8.001e-05,2]
[355606689,1741362897711,150.0,7.934e-05,2]
[355606690,1741362897748,150.0,8.078e-05,2]
[355606691,1741362897783,150.0,7.935e-05,2]
[355606692,1741362897823,150.0,7.941e-05,2]
[355606693,1741362897885,150.0,7.955e-05,2]
[355606694,1741362897927,150.0,8.02e-05,2]
[355606695,1741362897958,150.0,7.953e-05,2]
[355606696,1741362898043,150.0,7.993e-05,2]
[355606697,1741362898087,150.0,7.985e-05,2]
[355606698,1741362898126,150.0,7.994e-05,2]
[355606699,1741362898173,150.0,7.96e-05,2]
[355606700,1741362898212,150.0,8.049e-05,2]
[355606701,1741362898256,150.0,8.013e-05,2]
[355606702,1741362898317,150.0,7.992e-05,2]
[355606703,1741362898360,150.0,7.975e-05,2]
[355606704,1741362898405,150.0,8.03e-05,2]
[355606705,1741362898471,150.0,8.077e-05,2]
[355606706,1741362898576,150.0,7.956e-05,2]
[355606707,1741362898651,150.0,8.025e-05,2]
[355606708,1741362898688,150.0,8.026e-05,2]
[355606709,1741362898730,150.0,7.988e-05,2]
[355606710,1741362898767,150.0,8.044e-05,2]
[355606711,1741362898808,150.0,8.042e-05,2]
[355606712,1741362898845,150.0,8.07e-05,2]
[355606713,1741362898892,150.0,7.964e-05,2]
[355606714,1741362898930,150.0,7.936e-05,2]
[355606715,1741362898985,150.0,8.058e-05,2]
[355606716,1741362899021,150.0,7.983e-05,2]
[355606717,1741362899236,150.0,8.02e-05,2]
[355606718,1741362899282,150.0,7.98e-05,2]
[355606719,1741362899320,150.0,8.073e-05,2]
[355606720,1741362899539,150.0,8.051e-05,2]
[355606721,1741362899578,150.0,8.053e-05,2]
[355606722,1741362899631,150.0,8.074e-05,2]
[355606723,1741362899701,150.0,7.954e-05,2]
[355606724,1741362903559,157.83816242,8.038e-05,2]
[355606725,1741362949039,151.77,7.19e-05,2]
[355606726,1741362949260,151.77,7.223e-05,2]
[355606727,1741362949474,151.77,7.257e-05,2]
[355606728,1741362949698,151.77,7.291e-05,2]
[355606729,1741362950077,151.77,7.324e-05,2]
[355606730,1741362950325,151.77,7.358e-05,2]
[355606731,1741362950532,151.77,7.391e-05,2]
[355606732,1741362950901,151.77,7.425e-05,2]
[355606733,1741362951130,151.77,7.458e-05,2]
[355606734,1741362951333,151.77,7.492e-05,2]
[355606735,1741362951543,151.77,7.526e-05,2]
[355606736,1741362951782,151.77,7.559e-05,2]
[355606737,1741362952046,151.77,7.593e-05,2]
[355606738,1741362952238,151.77,7.626e-05,2]
[355606739,1741362952452,151.77,7.66e-05,2]
[355606740,1741362952672,151.77,7.693e-05,2]
[355606741,1741362961906,150.0,7.942e-05,2]
[355606742,1741363022065,150.0,8e-05,2]
[355606743,1741363022113,157.75550244,8.067e-05,2]
[355606744,1741363077420,150.0,7.959e-05,2]
[355606745,1741363077621,150.0,7.976e-05,2]
[355606746,1741363077657,150.0,8.075e-05,2]
[355606747,1741363077701,150.0,8.062e-05,2]
[355606748,1741363077739,150.0,8.068e-05,2]
[355606749,1741363077807,150.0,7.967e-05,2]
[355606750,1741363077856,150.0,8.073e-05,2]
[355606751,1741363077899,150.0,8.051e-05,2]
[355606752,1741363077939,150.0,8.012e-05,2]
[355606753,1741363077998,150.0,8.006e-05,2]
[355606754,1741363078031,150.0,7.999e-05,2]
[355606755,1741363078147,150.0,8.037e-05,2]
[355606756,1741363078195,150.0,8.08e-05,2]
[355606757,1741363078328,150.0,7.975e-05,2]
[355606758,1741363078401,150.0,8.034e-05,2]
[355606759,1741363078493,150.0,8.027e-05,2]
[355606760,1741363078553,150.0,8.001e-05,2]
[355606761,1741363078594,150.0,8.025e-05,2]
[355606762,1741363078632,150.0,8.006e-05,2]
[355606763,1741363078708,150.0,7.98e-05,2]
[355606764,1741363078749,150.0,8.017e-05,2]
[355606765,1741363078791,150.0,7.988e-05,2]
[355606766,1741363078832,150.0,7.977e-05,2]
[355606767,1741363078891,150.0,7.938e-05,2]
[355606768,1741363078936,150.0,7.972e-05,2]
[355606769,1741363078983,150.0,7.935e-05,2]
[355606770,1741363079271,150.0,8.056e-05,2]
[355606771,1741363079309,150.0,7.994e-05,2]
[355606772,1741363079347,150.0,8.038e-05,2]
[355606773,1741363079390,150.0,8.034e-05,2]
[355606774,1741363079441,150.0,7.99e-05,2]
[355606775,1741363079475,150.0,8.023e-05,2]
[355606776,1741363079510,150.0,7.985e-05,2]
[355606777,1741363079555,150.0,8.046e-05,2]
[355606778,1741363079591,150.0,7.994e-05,2]
[355606779,1741363079662,150.0,7.982e-05,2]
[355606780,1741363079732,150.0,7.958e-05,2]
[355606781,1741363079791,150.0,7.95e-05,2]
[355606782,1741363188349,433.46,7.154e-05,2]
[355606783,1741363189101,433.46,8.048e-05,2]
[355606784,1741363197301,150.0,7.989e-05,2]
[355606785,1741363197532,150.0,7.946e-05,2]
[355606786,1741363197595,150.0,7.936e-05,2]
[355606787,1741363197652,150.0,8.069e-05,2]
[355606788,1741363197686,150.0,7.96e-05,2]
[355606789,1741363197857,150.0,8.016e-05,2]
[355606790,1741363197893,150.0,7.928e-05,2]
[355606791,1741363197966,150.0,7.982e-05,2]
[355606792,1741363198002,150.0,7.975e-05,2]
[355606793,1741363198187,150.0,8.06e-05,2]
[355606794,1741363198223,150.0,7.95e-05,2]
[355606795,1741363198385,150.0,8.079e-05,2]
[355606796,1741363198540,150.0,8.025e-05,2]
[355606797,1741363198643,150.0,7.987e-05,2]
[355606798,1741363198917,150.0,8.044e-05,2]
[355606799,1741363198977,150.0,7.943e-05,2]
[355606800,1741363199064,150.0,7.934e-05,2]
[355606801,1741363200238,150.0,8.069e-05,2]
[355606802,1741363200276,150.0,7.993e-05,2]
[355606803,1741363200324,150.0,7.941e-05,2]
[355606804,1741363200399,150.0,7.978e-05,2]
[355606805,1741363200469,150.0,7.947e-05,2]
[355606806,1741363200542,150.0,8.055e-05,2]
[355606807,1741363200909,150.0,8.043e-05,2]
[355606808,1741363200965,150.0,7.94e-05,2]
[355606809,1741363201031,150.0,7.943e-05,2]
[355606810,1741363201220,150.0,7.926e-05,2]
[355606811,1741363201291,150.0,7.938e-05,2]
[355606812,1741363201347,150.0,7.959e-05,2]
[355606813,1741363257461,150.0,7.924e-05,2]
[355606814,1741363257835,150.0,7.977e-05,2]
[355606815,1741363257876,150.0,8.072e-05,2]
[355606816,1741363257923,150.0,7.97e-05,2]
[355606817,1741363257993,150.0,8.059e-05,2]
[355606818,1741363258037,150.0,8.015e-05,2]
[355606819,1741363258084,150.0,7.978e-05,2]
[355606820,1741363258134,150.0,7.974e-05,2]
[355606821,1741363258176,150.0,8.053e-05,2]
[355606822,1741363258521,150.0,8.065e-05,2]
[355606823,1741363258612,150.0,7.979e-05,2]
[355606824,1741363258688,150.0,7.956e-05,2]
[355606825,1741363258732,150.0,8.051e-05,2]
[355606826,1741363258791,150.0,7.943e-05,2]
[355606827,1741363258848,150.0,7.949e-05,2]
[355606828,1741363258895,150.0,8.02e-05,2]
[355606829,1741363258940,150.0,8.037e-05,2]
[355606830,1741363258987,150.0,7.963e-05,2]
[355606831,1741363259046,150.0,7.951e-05,2]
[355606832,1741363259089,150.0,7.965e-05,2]
[355606833,1741363259134,150.0,7.96e-05,2]
[355606834,1741363259171,150.0,7.937e-05,2]
[355606835,1741363259306,150.0,8.045e-05,2]
[355606836,1741363259366,150.0,8.023e-05,2]
[355606837,1741363259432,150.0,7.963e-05,2]
[355606838,1741363259486,150.0,8.009e-05,2]
[355606839,1741363259532,150.0,8.044e-05,2]
[355606840,1741363259569,150.0,8.012e-05,2]
[355606841,1741363259624,150.0,8.071e-05,2]
[355606842,1741363259724,150.0,7.924e-05,2]
[355606843,1741363259784,150.0,7.941e-05,2]
[355606844,1741363259826,150.0,8.046e-05,2]
[355606845,1741363259867,150.0,7.982e-05,2]
[355606846,1741363260016,150.0,7.995e-05,2]
[355606847,1741363260065,150.0,8.065e-05,2]
[355606848,1741363260156,150.0,7.978e-05,2]
[355606849,1741363385925,-150.0,8.084e-05,2]
[355606850,1741363386228,150.0,8.015e-05,2]
[355606851,1741363451317,168.03,7.365e-05,2]
[355606852,1741363451531,168.03,7.973e-05,2]
[355606853,1741363557440,150.0,7.989e-05,2]
[355606854,1741363557485,150.0,7.972e-05,2]
[355606855,1741363557549,150.0,7.977e-05,2]
[355606856,1741363557592,150.0,7.921e-05,2]
[355606857,1741363557643,150.0,8.04e-05,2]
[355606858,1741363557698,150.0,8.033e-05,2]
[355606859,1741363557833,150.0,7.929e-05,2]
[355606860,1741363557875,150.0,8.028e-05,2]
[355606861,1741363557915,150.0,7.976e-05,2]
[355606862,1741363557961,150.0,8.003e-05,2]
[355606863,1741363558014,150.0,8.042e-05,2]
[355606864,1741363558056,150.0,7.992e-05,2]
[355606865,1741363558138,150.0,8.043e-05,2]
[355606866,1741363558236,150.0,7.923e-05,2]
[355606867,1741363558288,150.0,7.985e-05,2]
[355606868,1741363558328,150.0,8.048e-05,2]
[355606869,1741363558390,150.0,7.952e-05,2]
[355606870,1741363558455,150.0,7.979e-05,2]
[355606871,1741363558508,150.0,7.979e-05,2]
[355606872,1741363558586,150.0,7.996e-05,2]
[355606873,1741363558634,150.0,8.036e-05,2]
[355606874,1741363558671,150.0,7.986e-05,2]
[355606875,1741363558715,150.0,7.955e-05,2]
[355606876,1741363558766,150.0,7.994e-05,2]
[355606877,1741363558806,150.0,7.986e-05,2]
[355606878,1741363558847,150.0,8.017e-05,2]
[355606879,1741363558896,150.0,8.048e-05,2]
[355606880,1741363558996,150.0,8.032e-05,2]
[355606881,1741363559048,150.0,7.967e-05,2]
[355606882,1741363559416,150.0,8.009e-05,2]
[355606883,1741363559456,150.0,7.954e-05,2]
[355606884,1741363559500,150.0,8.065e-05,2]
[355606885,1741363559552,150.0,8.073e-05,2]
[355606886,1741363559605,150.0,7.957e-05,2]